[Event "58th Akiba Rubinstein D 2022"]
[Site "Polanica-Zdroj"]
[Date "2022.08.21"]
[Round "9.12"]
[White "Pieczulis, Blazej"]
[Black "Skrzypinski, Jan"]
[Result "1-0"]
[ECO "D00"]
[WhiteElo "1720"]
[BlackElo "1517"]
[Annotator "NA RC"]
[PlyCount "65"]
[EventDate "2022.08.13"]
[EventCountry "POL"]
[SourceTitle "playchess.com"]
[Source "ChessBase"]
[SourceQuality "1"]
[TimeControl "40/5400+30:1800+30"]

1. d4 {[%emt 0:00:24]} d5 {[%emt 0:00:08]} 2. f4 {[%emt 0:00:59]} e6 {[%emt 0:00:10]} 3. Nf3 {[%emt 0:00:49]} f5 {[%emt 0:00:38]} 4. e3 {[%emt 0:01:30]} Nf6 {[%emt 0:00:06]} 5. c4 {[%emt 0:00:46]} c6 {[%emt 0:00:07]} 6. Nc3 {[%emt 0:01:49]} Bd6 {[%emt 0:00:29]} 7. Bd3 {[%emt 0:00:30]} O-O {[%emt 0:02:01]} 8. O-O {[%emt 0:00:12]} Nbd7 {[%emt 0:00:26]} 9. Ne5 {[%emt 0:02:02]} Bxe5 {[%emt 0:02:16]} 10. fxe5 {[%emt 0:00:21]} Ne4 {[%emt 0:00:06]} 11. Nxe4 {[%emt 0:01:15]} dxe4 {[%emt 0:01:17]} 12. Be2 {[%emt 0:02:34]} b6 {[%emt 0:07:52]} 13. b3 {[%emt 0:04:48]} Qg5 {[%emt 0:01:55]} 14. a4 {[%emt 0:04:28]} Rd8 {[%emt 0:03:00]} 15. Qc2 {[%emt 0:00:42]} Bb7 {[%emt 0:01:42]} 16. Qc3 {[%emt 0:14:22]} Rac8 {[%emt 0:11:04]} 17. c5 {[%emt 0:04:02]} bxc5 {[%emt 0:02:25]} 18. dxc5 {[%emt 0:00:05]} Qe7 {[%emt 0:00:34]} 19. Ba3 {[%emt 0:07:05]} Nb8 {[%emt 0:02:49]} 20. b4 {[%emt 0:01:52]} Na6 {[%emt 0:00:40]} 21. Rad1 {[%emt 0:09:45]} Nc7 {[%emt 0:01:06]} 22. Bc4 {[%emt 0:00:22]} g6 {[%emt 0:02:41]} 23. Rd6 {[%emt 0:02:31]} Nd5 {[%emt 0:00:12]} 24. Bxd5 {[%emt 0:00:07]} exd5 {[%emt 0:00:14]} 25. Bb2 {[%emt 0:00:22]} Qg7 {[%emt 0:00:51]} 26. Qd2 {[%emt 0:00:58]} h6 {[%emt 0:02:35]} 27. e6 {[%emt 0:11:38]} Qh7 {[%emt 0:01:44]} 28. Qd4 {[%emt 0:00:39]} a6 {[%emt 0:02:21]} 29. g4 {[%emt 0:06:08]} Ba8 {[%emt 0:04:27]} 30. gxf5 {[%emt 0:01:53]} gxf5 {[%emt 0:00:12]} 31. Rxf5 {[%emt 0:01:27]} Rf8 {[%emt 0:00:12]} 32. Rd7 {[%emt 0:01:50]} Rxf5 {[%emt 0:00:30]} 33. Rg7+ {[%emt 0:00:11]} 1-0

[Event "58th Akiba Rubinstein D 2022"]
[Site "Polanica-Zdroj"]
[Date "2022.08.21"]
[Round "9.13"]
[White "Krygiel, Konrad"]
[Black "Marek, Grzegorz"]
[Result "0-1"]
[ECO "B40"]
[WhiteElo "1603"]
[BlackElo "1478"]
[Annotator "NA RC"]
[PlyCount "162"]
[EventDate "2022.08.13"]
[EventCountry "POL"]
[SourceTitle "playchess.com"]
[Source "ChessBase"]
[SourceQuality "1"]
[TimeControl "40/5400+30:1800+30"]

1. e4 {[%emt 0:00:01]} c5 {[%emt 0:00:06]} 2. Nf3 {[%emt 0:00:04]} e6 {[%emt 0:00:08]} 3. b3 {[%emt 0:00:47]} Nc6 {[%emt 0:00:04]} 4. Bb2 {[%emt 0:00:12]} Nf6 {[%emt 0:00:48]} 5. e5 {[%emt 0:07:28]} Ng4 {[%emt 0:00:20]} 6. h3 {[%emt 0:00:55]} Nh6 {[%emt 0:00:09]} 7. Bb5 {[%emt 0:03:52]} Qc7 {[%emt 0:03:56]} 8. Bxc6 {[%emt 0:03:36]} Qxc6 {[%emt 0:01:04]} 9. Qe2 {[%emt 0:02:47]} Be7 {[%emt 0:07:22]} 10. Nc3 {[%emt 0:02:29]} a6 {[%emt 0:01:24]} 11. Qe4 {[%emt 0:15:34]} Qxe4+ {[%emt 0:09:34]} 12. Nxe4 {[%emt 0:00:01]} b6 {[%emt 0:00:58]} 13. Ng3 {[%emt 0:08:32]} Bb7 {[%emt 0:01:30]} 14. O-O-O {[%emt 0:06:29]} O-O {[%emt 0:06:10]} 15. Kb1 {[%emt 0:03:13]} d5 {[%emt 0:10:10]} 16. d4 {[%emt 0:08:26]} a5 {[%emt 0:04:58]} 17. Ne2 {[%emt 0:12:37]} Ba6 {[%emt 0:03:48]} 18. Nc1 {[%emt 0:06:57]} a4 {[%emt 0:04:40]} 19. a3 {[%emt 0:09:11]} Rfc8 {[%emt 0:06:44]} 20. Na2 {[%emt 0:03:58]} Be2 {[%emt 0:04:07]} 21. Rd2 {[%emt 0:02:02]} Bxf3 {[%emt 0:00:15]} 22. gxf3 axb3 {[%emt 0:07:19]} 23. cxb3 {[%emt 0:00:02]} cxd4 {[%emt 0:00:53]} 24. b4 {[%emt 0:00:48]} Nf5 {[%emt 0:00:35]} 25. Nc1 {[%emt 0:01:27]} Bg5 {[%emt 0:01:33]} 26. Rd3 {[%emt 0:00:01]} Bxc1 {[%emt 0:07:46]} 27. Rxc1 {[%emt 0:00:11]} Rc4 {[%emt 0:03:04]} 28. Rcd1 {[%emt 0:00:24]} Kf8 {[%emt 0:00:59]} 29. R1d2 {[%emt 0:01:54]} Ke7 {[%emt 0:00:28]} 30. f4 {[%emt 0:00:24]} h5 {[%emt 0:01:18]} 31. Rd1 {[%emt 0:01:02]} Kd7 {[%emt 0:00:29]} 32. R1d2 {[%emt 0:00:34]} Kc6 {[%emt 0:01:12]} 33. Rd1 {[%emt 0:00:14]} Kb5 {[%emt 0:00:26]} 34. R1d2 {[%emt 0:00:37]} Kc6 {[%emt 0:02:28]} 35. Rd1 {[%emt 0:00:22]} Kd7 {[%emt 0:00:05]} 36. R1d2 {[%emt 0:00:42]} Ke7 {[%emt 0:00:09]} 37. Rd1 {[%emt 0:00:26]} Kf8 {[%emt 0:00:32]} 38. R1d2 {[%emt 0:00:31]} Kg8 {[%emt 0:00:12]} 39. Rd1 {[%emt 0:00:31]} Kh7 {[%emt 0:00:04]} 40. Ka2 {[%emt 0:00:35]} Rxb4 {[%emt 0:00:45]} 41. Bxd4 {[%emt 0:30:10]} b5 {[%emt 0:33:40]} 42. Be3 {[%emt 0:00:38]} Rba4 {[%emt 0:01:21]} 43. Kb2 {[%emt 0:00:23]} b4 {[%emt 0:00:25]} 44. axb4 {[%emt 0:00:49]} Rxb4+ {[%emt 0:00:50]} 45. Rb3 {[%emt 0:00:27]} Rxb3+ {[%emt 0:00:40]} 46. Kxb3 {[%emt 0:00:01]} Rc8 {[%emt 0:01:57]} 47. Kb2 {[%emt 0:01:03]} Rc4 {[%emt 0:00:39]} 48. Rd3 {[%emt 0:00:16]} Nxe3 {[%emt 0:02:12]} 49. fxe3 {[%emt 0:00:05]} Kg6 {[%emt 0:00:06]} 50. Ra3 {[%emt 0:00:45]} Rc7 {[%emt 0:00:25]} 51. Ra1 {[%emt 0:00:13]} Kf5 {[%emt 0:00:41]} 52. Rg1 {[%emt 0:00:26]} g6 {[%emt 0:01:01]} 53. h4 {[%emt 0:00:34]} Ke4 {[%emt 0:00:19]} 54. Rg3 {[%emt 0:00:01]} Rc6 {[%emt 0:01:06]} 55. Rh3 {[%emt 0:00:31]} Rc4 {[%emt 0:00:30]} 56. Rg3 {[%emt 0:00:48]} d4 {[%emt 0:00:55]} 57. exd4 {[%emt 0:00:40]} Rxd4 {[%emt 0:00:30]} 58. Ra3 {[%emt 0:00:43]} Kxf4 {[%emt 0:00:21]} 59. Ra7 {[%emt 0:00:20]} Kxe5 {[%emt 0:00:11]} 60. Rxf7 {[%emt 0:00:11]} Rxh4 {[%emt 0:00:04]} 61. Kc3 {[%emt 0:00:07]} Kd5 {[%emt 0:00:57]} 62. Kd3 {[%emt 0:00:15]} g5 {[%emt 0:00:23]} 63. Ke3 {[%emt 0:00:11]} Rh3+ {[%emt 0:00:18]} 64. Kf2 {[%emt 0:00:13]} Ke4 {[%emt 0:00:25]} 65. Kg2 {[%emt 0:00:48]} g4 {[%emt 0:01:22]} 66. Ra7 {[%emt 0:00:46]} e5 {[%emt 0:00:18]} 67. Ra4+ {[%emt 0:00:06]} Kf5 {[%emt 0:00:09]} 68. Ra8 {[%emt 0:00:15]} Kf4 {[%emt 0:00:25]} 69. Ra4+ {[%emt 0:00:30]} e4 {[%emt 0:00:06]} 70. Ra8 {[%emt 0:00:06]} Rd3 {[%emt 0:01:22]} 71. Rf8+ {[%emt 0:00:11]} Ke3 {[%emt 0:00:15]} 72. Rh8 {[%emt 0:00:21]} Rd5 {[%emt 0:00:10]} 73. Kg3 {[%emt 0:00:14]} Ke2 {[%emt 0:00:50]} 74. Re8 {[%emt 0:00:54]} e3 {[%emt 0:00:16]} 75. Kf4 {[%emt 0:00:14]} Rd4+ {[%emt 0:00:07]} 76. Kg3 {[%emt 0:00:07]} Kd2 {[%emt 0:00:53]} 77. Ra8 {[%emt 0:00:18]} e2 {[%emt 0:00:19]} 78. Ra2+ {[%emt 0:00:05]} Ke3 {[%emt 0:00:07]} 79. Ra1 {[%emt 0:00:18]} Rd1 {[%emt 0:00:10]} 80. Ra3+ {[%emt 0:00:04]} Rd3 {[%emt 0:00:05]} 81. Ra1 {[%emt 0:00:08]} Kd2+ {[%emt 0:00:00]} 0-1

[Event "58th Akiba Rubinstein D 2022"]
[Site "Polanica-Zdroj"]
[Date "2022.08.21"]
[Round "9.14"]
[White "Durzynski, Jan"]
[Black "Sola, Wojciech"]
[Result "0-1"]
[ECO "B27"]
[WhiteElo "1406"]
[BlackElo "1780"]
[Annotator "NA RC"]
[PlyCount "118"]
[EventDate "2022.08.13"]
[EventCountry "POL"]
[SourceTitle "playchess.com"]
[Source "ChessBase"]
[SourceQuality "1"]
[TimeControl "40/5400+30:1800+30"]

1. e4 {[%emt 0:00:09]} c5 {[%emt 0:00:21]} 2. Nf3 {[%emt 0:00:07]} g6 {[%emt 0:00:07]} 3. c3 {[%emt 0:01:02]} Bg7 {[%emt 0:00:08]} 4. d4 {[%emt 0:00:05]} cxd4 {[%emt 0:00:07]} 5. cxd4 {[%emt 0:00:06]} d5 {[%emt 0:00:17]} 6. e5 {[%emt 0:00:08]} Bg4 {[%emt 0:00:34]} 7. Bb5+ {[%emt 0:00:43]} Nc6 {[%emt 0:01:15]} 8. O-O {[%emt 0:00:21]} e6 {[%emt 0:00:45]} 9. h3 {[%emt 0:00:21]} Bxf3 {[%emt 0:00:20]} 10. Qxf3 {[%emt 0:00:06]} Nge7 {[%emt 0:00:32]} 11. Nc3 {[%emt 0:02:30]} O-O {[%emt 0:01:13]} 12. Qd3 {[%emt 0:02:00]} Qb6 {[%emt 0:01:44]} 13. Bxc6 {[%emt 0:00:16]} Nxc6 {[%emt 0:00:46]} 14. Be3 {[%emt 0:01:28]} Rfc8 {[%emt 0:00:58]} 15. a3 {[%emt 0:00:48]} Qb3 {[%emt 0:04:43]} 16. Qb5 {[%emt 0:02:22]} Qxb5 {[%emt 0:02:43]} 17. Nxb5 {[%emt 0:00:06]} Bf8 {[%emt 0:01:28]} 18. Rac1 {[%emt 0:08:17]} a6 {[%emt 0:01:20]} 19. Nc3 {[%emt 0:00:26]} Na5 {[%emt 0:00:34]} 20. Na2 {[%emt 0:33:09]} Nc4 {[%emt 0:02:19]} 21. Rb1 {[%emt 0:02:11]} Rc6 {[%emt 0:04:52]} 22. Bc1 {[%emt 0:07:38]} a5 {[%emt 0:05:48]} 23. a4 {[%emt 0:02:00]} Rac8 {[%emt 0:05:30]} 24. Bf4 {[%emt 0:06:05]} b5 {[%emt 0:10:11]} 25. axb5 {[%emt 0:02:14]} Rb6 {[%emt 0:02:48]} 26. Nc3 {[%emt 0:00:08]} Bb4 {[%emt 0:00:23]} 27. Rfc1 {[%emt 0:02:10]} Bxc3 {[%emt 0:03:12]} 28. bxc3 {[%emt 0:00:33]} Rcb8 {[%emt 0:00:07]} 29. Kf1 {[%emt 0:03:18]} Kf8 {[%emt 0:00:42]} 30. Ke2 {[%emt 0:00:29]} Rxb5 {[%emt 0:00:20]} 31. Rxb5 {[%emt 0:00:29]} Rxb5 {[%emt 0:00:08]} 32. Kd3 {[%emt 0:01:13]} Ke7 {[%emt 0:07:38]} 33. Rc2 {[%emt 0:01:24]} Rb1 {[%emt 0:01:05]} 34. Rc1 {[%emt 0:00:08]} Rxc1 {[%emt 0:03:44]} 35. Bxc1 {[%emt 0:00:05]} Kd7 {[%emt 0:00:06]} 36. Kc2 {[%emt 0:05:06]} Kc6 {[%emt 0:00:35]} 37. g4 {[%emt 0:00:32]} Kb5 {[%emt 0:00:26]} 38. f4 {[%emt 0:00:40]} Nb6 {[%emt 0:02:49]} 39. Kb3 {[%emt 0:00:08]} a4+ {[%emt 0:00:12]} 40. Kb2 {[%emt 0:01:17]} Nc4+ {[%emt 0:02:41]} 41. Kc2 {[%emt 0:30:15]} Ka5 {[%emt 0:30:38]} 42. f5 {[%emt 0:00:57]} exf5 {[%emt 0:00:51]} 43. gxf5 {[%emt 0:00:08]} gxf5 {[%emt 0:00:17]} 44. Bg5 {[%emt 0:00:18]} Kb5 {[%emt 0:00:26]} 45. Bc1 {[%emt 0:00:24]} Kc6 {[%emt 0:00:46]} 46. h4 {[%emt 0:00:21]} Kd7 {[%emt 0:00:47]} 47. Bg5 {[%emt 0:00:34]} Ke6 {[%emt 0:00:21]} 48. Kb1 {[%emt 0:00:58]} Kd7 {[%emt 0:11:21]} 49. Ka2 {[%emt 0:00:47]} Kc6 {[%emt 0:00:42]} 50. h5 {[%emt 0:00:47]} Kb5 {[%emt 0:00:24]} 51. Bf4 {[%emt 0:00:21]} Nb6 {[%emt 0:00:28]} 52. Kb2 {[%emt 0:00:18]} Kc4 {[%emt 0:00:24]} 53. Kc2 {[%emt 0:00:20]} a3 {[%emt 0:00:13]} 54. Bc1 {[%emt 0:00:04]} a2 {[%emt 0:01:36]} 55. Kb2 {[%emt 0:00:07]} Na4+ {[%emt 0:00:56]} 56. Kxa2 {[%emt 0:00:05]} Nxc3+ {[%emt 0:00:20]} 57. Kb2 {[%emt 0:00:04]} Ne2 {[%emt 0:02:02]} 58. Be3 {[%emt 0:00:20]} f4 {[%emt 0:01:36]} 59. Bf2 {[%emt 0:00:19]} Nxd4 {[%emt 0:00:43]} 0-1

[Event "58th Akiba Rubinstein D 2022"]
[Site "Polanica-Zdroj"]
[Date "2022.08.21"]
[Round "9.17"]
[White "Milczarek, Robert"]
[Black "Dysko, Michal"]
[Result "0-1"]
[ECO "E20"]
[WhiteElo "1653"]
[BlackElo "1376"]
[Annotator "NA RC"]
[PlyCount "76"]
[EventDate "2022.08.13"]
[EventCountry "POL"]
[SourceTitle "playchess.com"]
[Source "ChessBase"]
[SourceQuality "1"]
[TimeControl "40/5400+30:1800+30"]

1. d4 {[%emt 0:00:03]} Nf6 {[%emt 0:00:22]} 2. c4 {[%emt 0:00:12]} e6 {[%emt 0:00:15]} 3. Nc3 {[%emt 0:00:14]} Bb4 {[%emt 0:00:48]} 4. f3 {[%emt 0:00:21]} O-O {[%emt 0:00:50]} 5. a3 {[%emt 0:00:18]} Bxc3+ {[%emt 0:00:42]} 6. bxc3 {[%emt 0:00:08]} b6 {[%emt 0:04:15]} 7. Bg5 {[%emt 0:03:14]} d5 {[%emt 0:03:06]} 8. cxd5 {[%emt 0:01:27]} exd5 {[%emt 0:00:02]} 9. e3 {[%emt 0:01:57]} Re8 {[%emt 0:01:05]} 10. Qd2 {[%emt 0:01:23]} Qe7 {[%emt 0:02:06]} 11. Kf2 {[%emt 0:03:34]} Ng4+ {[%emt 0:04:48]} 12. fxg4 {[%emt 0:02:04]} Qxg5 {[%emt 0:00:06]} 13. Nf3 {[%emt 0:01:21]} Qxg4 {[%emt 0:00:45]} 14. Bd3 {[%emt 0:02:28]} h6 {[%emt 0:05:11]} 15. Rhf1 {[%emt 0:03:11]} Nd7 {[%emt 0:13:38]} 16. h3 {[%emt 0:04:29]} Qe6 {[%emt 0:00:06]} 17. e4 {[%emt 0:04:56]} dxe4 {[%emt 0:00:37]} 18. Bxe4 {[%emt 0:01:29]} Rb8 {[%emt 0:00:06]} 19. Rae1 {[%emt 0:00:38]} Qd6 {[%emt 0:00:27]} 20. Bh7+ {[%emt 0:02:42]} Kf8 {[%emt 0:00:01]} 21. Rxe8+ {[%emt 0:00:49]} Kxe8 {[%emt 0:00:02]} 22. Re1+ {[%emt 0:00:22]} Kf8 {[%emt 0:00:18]} 23. Qe3 {[%emt 0:02:25]} Bb7 {[%emt 0:01:03]} 24. Bc2 {[%emt 0:08:37]} Bxf3 {[%emt 0:05:34]} 25. Qxf3 {[%emt 0:03:04]} Qxa3 {[%emt 0:01:56]} 26. g4 {[%emt 0:07:40]} Qd6 {[%emt 0:02:43]} 27. Kg2 {[%emt 0:01:44]} Nf6 {[%emt 0:12:11]} 28. Bb3 {[%emt 0:01:20]} Qd7 {[%emt 0:02:59]} 29. Rf1 {[%emt 0:01:50]} c6 {[%emt 0:06:16]} 30. h4 {[%emt 0:02:39]} Re8 {[%emt 0:02:58]} 31. g5 {[%emt 0:01:40]} Nd5 {[%emt 0:00:42]} 32. gxh6 {[%emt 0:05:49]} gxh6 {[%emt 0:02:10]} 33. Kg1 {[%emt 0:08:33]} Re3 {[%emt 0:04:08]} 34. Qh5 {[%emt 0:06:54]} Qe6 {[%emt 0:00:51]} 35. Bxd5 {[%emt 0:02:48]} cxd5 {[%emt 0:00:02]} 36. Rf2 {[%emt 0:09:47]} Rxc3 {[%emt 0:10:22]} 37. Qd1 {[%emt 0:00:42]} Rg3+ {[%emt 0:02:29]} 38. Kh1 {[%emt 0:01:07]} Qe4+ {[%emt 0:01:09]} 0-1

[Event "58th Akiba Rubinstein D 2022"]
[Site "Polanica-Zdroj"]
[Date "2022.08.21"]
[Round "9.18"]
[White "Stachowiak, Bruno"]
[Black "Markiewicz, Jacek"]
[Result "1/2-1/2"]
[ECO "B18"]
[WhiteElo "1462"]
[BlackElo "1610"]
[Annotator "NA RC"]
[PlyCount "91"]
[EventDate "2022.08.13"]
[EventCountry "POL"]
[SourceTitle "playchess.com"]
[Source "ChessBase"]
[SourceQuality "1"]
[TimeControl "40/5400+30:1800+30"]

1. e4 {[%emt 0:01:12]} c6 {[%emt 0:07:31]} 2. d4 {[%emt 0:00:58]} d5 {[%emt 0:00:04]} 3. Nc3 {[%emt 0:00:38]} dxe4 {[%emt 0:00:05]} 4. Nxe4 {[%emt 0:00:03]} Bf5 {[%emt 0:00:12]} 5. Ng3 {[%emt 0:00:28]} Bg6 {[%emt 0:00:04]} 6. h4 {[%emt 0:01:07]} h6 {[%emt 0:00:17]} 7. Nf3 {[%emt 0:00:14]} e6 {[%emt 0:01:00]} 8. Bd3 {[%emt 0:01:53]} Bxd3 {[%emt 0:00:29]} 9. Qxd3 {[%emt 0:00:02]} Nf6 {[%emt 0:00:50]} 10. Bd2 {[%emt 0:02:40]} Nbd7 {[%emt 0:00:55]} 11. O-O-O {[%emt 0:02:40]} Be7 {[%emt 0:01:19]} 12. Ne4 {[%emt 0:06:58]} Nxe4 {[%emt 0:00:31]} 13. Qxe4 {[%emt 0:00:01]} Nf6 {[%emt 0:01:31]} 14. Qd3 {[%emt 0:00:49]} Qd5 {[%emt 0:02:05]} 15. Kb1 {[%emt 0:03:16]} b5 {[%emt 0:23:19]} 16. Rde1 {[%emt 0:04:06]} Ng4 {[%emt 0:12:17]} 17. Rhf1 {[%emt 0:08:03]} Bd6 {[%emt 0:10:49]} 18. Ne5 {[%emt 0:04:28]} Nxe5 {[%emt 0:08:09]} 19. dxe5 Qxd3 {[%emt 0:19:46]} 20. cxd3 {[%emt 0:00:20]} Be7 {[%emt 0:00:19]} 21. Re4 {[%emt 0:05:40]} O-O-O {[%emt 0:00:41]} 22. Rc1 {[%emt 0:03:28]} Kb7 {[%emt 0:01:53]} 23. d4 {[%emt 0:00:13]} Kb6 {[%emt 0:03:01]} 24. Be3 {[%emt 0:06:13]} Rd5 {[%emt 0:00:25]} 25. Rf4 {[%emt 0:05:04]} f5 {[%emt 0:02:10]} 26. exf6 {[%emt 0:00:33]} Bxf6 {[%emt 0:00:48]} 27. Re4 {[%emt 0:00:17]} Re8 {[%emt 0:02:28]} 28. Re1 {[%emt 0:03:18]} Kc7 {[%emt 0:00:42]} 29. Rg4 {[%emt 0:07:41]} Kd7 {[%emt 0:00:31]} 30. f3 {[%emt 0:05:10]} a5 {[%emt 0:00:25]} 31. Bf2 {[%emt 0:02:06]} a4 {[%emt 0:00:45]} 32. Rge4 {[%emt 0:01:15]} b4 {[%emt 0:00:24]} 33. Kc2 {[%emt 0:01:58]} Re7 {[%emt 0:00:41]} 34. Rd1 {[%emt 0:03:02]} Re8 {[%emt 0:00:20]} 35. g4 {[%emt 0:01:32]} e5 {[%emt 0:00:38]} 36. dxe5 {[%emt 0:03:06]} Rexe5 {[%emt 0:00:27]} 37. Rxe5 {[%emt 0:11:50]} Rxd1 {[%emt 0:00:26]} 38. Kxd1 {[%emt 0:04:00]} Bxe5 {[%emt 0:00:04]} 39. Kc2 {[%emt 0:00:30]} Kd6 {[%emt 0:00:17]} 40. b3 {[%emt 0:00:57]} a3 {[%emt 0:00:11]} 41. Be3 {[%emt 0:31:37]} Kd5 {[%emt 0:31:14]} 42. f4 {[%emt 0:00:37]} Bf6 {[%emt 0:00:40]} 43. g5 {[%emt 0:00:06]} hxg5 {[%emt 0:00:39]} 44. fxg5 {[%emt 0:00:05]} Be5 {[%emt 0:00:26]} 45. Kd3 {[%emt 0:00:19]} g6 {[%emt 0:00:22]} 46. Bf2 1/2-1/2

[Event "58th Akiba Rubinstein D 2022"]
[Site "Polanica-Zdroj"]
[Date "2022.08.21"]
[Round "9.19"]
[White "Litwin, Tomasz"]
[Black "Wilgosz, Tomasz"]
[Result "0-1"]
[ECO "A00"]
[WhiteElo "1580"]
[BlackElo "1513"]
[Annotator "NA RC"]
[PlyCount "70"]
[EventDate "2022.08.13"]
[EventCountry "POL"]
[SourceTitle "playchess.com"]
[Source "ChessBase"]
[SourceQuality "1"]
[TimeControl "40/5400+30:1800+30"]

1. b4 {[%emt 0:00:03]} e5 {[%emt 0:02:39]} 2. Bb2 {[%emt 0:00:02]} Bxb4 {[%emt 0:01:18]} 3. Bxe5 {[%emt 0:00:03]} Nf6 {[%emt 0:00:20]} 4. e3 {[%emt 0:00:02]} d5 {[%emt 0:02:57]} 5. c4 {[%emt 0:00:17]} O-O {[%emt 0:01:37]} 6. Nf3 {[%emt 0:00:04]} Nc6 {[%emt 0:02:43]} 7. Bb2 {[%emt 0:00:02]} Bg4 {[%emt 0:01:37]} 8. cxd5 {[%emt 0:00:23]} Nxd5 {[%emt 0:01:44]} 9. Be2 {[%emt 0:00:02]} Ba5 {[%emt 0:02:55]} 10. a3 {[%emt 0:00:19]} Qe7 {[%emt 0:02:14]} 11. O-O {[%emt 0:00:04]} Rfe8 {[%emt 0:00:49]} 12. Qb3 {[%emt 0:07:31]} Nf4 {[%emt 0:06:37]} 13. Bd1 {[%emt 0:17:36]} Nh3+ {[%emt 0:11:22]} 14. Kh1 {[%emt 0:03:12]} Bxf3 {[%emt 0:06:47]} 15. Bxf3 {[%emt 0:03:12]} Ng5 {[%emt 0:00:52]} 16. Bxc6 {[%emt 0:07:24]} bxc6 {[%emt 0:00:02]} 17. Nc3 {[%emt 0:00:23]} Red8 {[%emt 0:06:27]} 18. Rad1 {[%emt 0:02:15]} Rd6 {[%emt 0:00:30]} 19. Qc2 {[%emt 0:04:47]} Rh6 {[%emt 0:07:31]} 20. Qf5 {[%emt 0:06:22]} Bxc3 {[%emt 0:13:09]} 21. Bxc3 Re8 {[%emt 0:04:51]} 22. Bb4 {[%emt 0:04:45]} Qd8 {[%emt 0:03:11]} 23. d3 {[%emt 0:05:42]} Ne6 {[%emt 0:01:45]} 24. Rc1 {[%emt 0:04:19]} Qh4 {[%emt 0:03:24]} 25. Qe5 {[%emt 0:07:17]} Qd8 {[%emt 0:04:31]} 26. Rc3 {[%emt 0:04:51]} Ng5 {[%emt 0:04:49]} 27. Qf4 {[%emt 0:03:20]} Rg6 {[%emt 0:03:11]} 28. e4 {[%emt 0:07:50]} Ne6 {[%emt 0:00:55]} 29. Qe3 {[%emt 0:00:03]} Nd4 {[%emt 0:01:17]} 30. f4 {[%emt 0:00:34]} Qd7 {[%emt 0:00:30]} 31. Bc5 {[%emt 0:00:47]} Qg4 {[%emt 0:01:29]} 32. Rg1 {[%emt 0:00:23]} Ne2 {[%emt 0:00:21]} 33. Qh3 {[%emt 0:05:04]} Qxh3 {[%emt 0:00:18]} 34. gxh3 {[%emt 0:00:03]} Rxg1+ 35. Bxg1 {[%emt 0:01:13]} Nxc3 {[%emt 0:00:55]} 0-1

[Event "58th Akiba Rubinstein D 2022"]
[Site "Polanica-Zdroj"]
[Date "2022.08.21"]
[Round "9.20"]
[White "Soszka, Szymon"]
[Black "Garwacki, Kornel"]
[Result "1/2-1/2"]
[ECO "E70"]
[WhiteElo "1355"]
[BlackElo "1571"]
[Annotator "NA RC"]
[PlyCount "102"]
[EventDate "2022.08.13"]
[EventCountry "POL"]
[SourceTitle "playchess.com"]
[Source "ChessBase"]
[SourceQuality "1"]
[TimeControl "40/5400+30:1800+30"]

1. d4 Nf6 2. c4 {[%emt 0:29:04]} d6 {[%emt 0:00:03]} 3. Nc3 {[%emt 0:00:06]} g6 {[%emt 0:00:03]} 4. e4 {[%emt 0:00:03]} Bg7 {[%emt 0:00:02]} 5. Bg5 {[%emt 0:00:05]} O-O {[%emt 0:00:07]} 6. Qd2 {[%emt 0:00:13]} c6 {[%emt 0:00:14]} 7. Bd3 {[%emt 0:00:07]} Nbd7 {[%emt 0:00:16]} 8. Nge2 {[%emt 0:00:08]} Qc7 {[%emt 0:00:16]} 9. O-O {[%emt 0:00:14]} e5 {[%emt 0:00:06]} 10. d5 {[%emt 0:00:06]} Nc5 {[%emt 0:00:12]} 11. Bc2 {[%emt 0:00:06]} a5 {[%emt 0:01:08]} 12. Rad1 {[%emt 0:01:02]} Ne8 {[%emt 0:03:57]} 13. Kh1 {[%emt 0:05:27]} f6 {[%emt 0:02:17]} 14. Bh6 {[%emt 0:00:08]} f5 {[%emt 0:00:49]} 15. Bxg7 {[%emt 0:00:15]} Kxg7 {[%emt 0:00:30]} 16. f4 {[%emt 0:00:05]} fxe4 {[%emt 0:01:14]} 17. fxe5 {[%emt 0:02:00]} Rxf1+ {[%emt 0:07:03]} 18. Rxf1 {[%emt 0:00:07]} dxe5 {[%emt 0:01:06]} 19. Nxe4 {[%emt 0:00:25]} Nxe4 {[%emt 0:00:41]} 20. Bxe4 {[%emt 0:00:06]} Nd6 {[%emt 0:02:02]} 21. Bd3 {[%emt 0:02:26]} cxd5 {[%emt 0:03:01]} 22. Qg5 {[%emt 0:01:09]} Nf7 {[%emt 0:02:38]} 23. Qf6+ {[%emt 0:00:23]} Kg8 {[%emt 0:00:13]} 24. cxd5 {[%emt 0:00:29]} Bf5 {[%emt 0:11:45]} 25. Bxf5 {[%emt 0:00:46]} gxf5 {[%emt 0:00:07]} 26. Rxf5 {[%emt 0:00:28]} Ra6 {[%emt 0:01:36]} 27. Qh4 {[%emt 0:00:43]} Qc2 {[%emt 0:01:40]} 28. Qf2 {[%emt 0:00:05]} Qd1+ {[%emt 0:00:51]} 29. Qf1 {[%emt 0:00:45]} Qxd5 {[%emt 0:00:28]} 30. Nc3 {[%emt 0:00:06]} Qe6 {[%emt 0:02:56]} 31. Ne4 {[%emt 0:02:18]} Rc6 {[%emt 0:01:03]} 32. Nf6+ {[%emt 0:00:55]} Kh8 {[%emt 0:01:16]} 33. h3 {[%emt 0:00:14]} Rc1 {[%emt 0:02:10]} 34. Qxc1 {[%emt 0:00:01]} Qxf5 {[%emt 0:00:01]} 35. Ng4 {[%emt 0:00:01]} Qe6 {[%emt 0:01:57]} 36. Qc5 {[%emt 0:02:06]} h5 {[%emt 0:02:55]} 37. Ne3 {[%emt 0:02:29]} b6 {[%emt 0:01:34]} 38. Qc4 {[%emt 0:00:11]} Qg6 {[%emt 0:01:48]} 39. Qc8+ {[%emt 0:00:49]} Kh7 40. Nf5 {[%emt 0:00:35]} Qf6 {[%emt 0:04:30]} 41. Qd7 Kg6 {[%emt 0:31:48]} 42. Ne7+ {[%emt 0:31:26]} Kg5 {[%emt 0:01:44]} 43. Qd2+ {[%emt 0:00:07]} Qf4 {[%emt 0:01:12]} 44. h4+ {[%emt 0:02:33]} Kg4 {[%emt 0:03:57]} 45. Qd7+ {[%emt 0:02:01]} Kg3 {[%emt 0:00:27]} 46. Qd3+ {[%emt 0:00:04]} Kf2 {[%emt 0:00:51]} 47. Qc2+ {[%emt 0:01:32]} Ke1 {[%emt 0:00:56]} 48. Nf5 Qf1+ 49. Kh2 Qf4+ 50. Kh3 Qg4+ 51. Kh2 Qf4+ 1/2-1/2